bitfinex-derivatives/quotes_SOLF0:USTF0_20241103
["timestamp","ask_amount","ask_price","bid_price","bid_amount"]
[1730640312923,3.0685,163.0,162.92,1.3819]
[1730640314234,3.0685,163.0,162.96,3.0691]
[1730640316534,3.0683,163.01,162.92,1.3819]
[1730640316728,60.10200966,163.02,162.92,1.3819]
[1730640318334,3.0686,163.0,162.96,3.0691]
[1730640318733,60.10200966,163.02,162.92,1.3819]
[1730640319040,3.0688,162.99,162.95,3.0694]
[1730640322843,60.10200966,163.02,162.92,4.3619]
[1730640323040,3.0693,162.96,162.93,3.0697]
[1730640323428,2.98,162.99,162.89,1.2634]
[1730640323744,1.2689,162.98,162.9,3.0704]
[1730640324039,3.0697,162.94,162.9,3.0704]
[1730640324646,3.0697,162.94,162.91,3.0702]
[1730640324826,1.2689,162.98,162.85,2.7353]
[1730640325024,2.6659,162.98,162.88,3.0707]
[1730640325433,3.0701,162.92,162.88,3.0707]
[1730640325744,2.98,162.95,162.87,3.0708]
[1730640326041,3.0703,162.91,162.87,3.0708]
[1730640326232,2.98,162.95,162.87,3.0708]
[1730640326643,2.98,162.95,162.86,2.98]
[1730640326934,2.98,162.95,162.85,1.3924]
[1730640327143,3.0705,162.9,162.85,1.3924]
[1730640327545,3.0705,162.9,162.86,3.071]
[1730640327848,2.98,162.95,162.86,3.071]
[1730640328037,2.98,162.95,162.81,1.3979]
[1730640328343,3.0709,162.88,162.82,2.98]
[1730640328842,2.98,162.91,162.82,2.98]
[1730640328843,3.0706,162.89,162.82,2.98]
[1730640329436,3.0706,162.89,162.85,3.0712]
[1730640331855,3.0704,162.91,162.87,3.0709]
[1730640332948,3.0704,162.91,162.82,2.98]
[1730640333744,3.0704,162.91,162.87,3.0708]
[1730640336657,2.98,162.92,162.87,3.0708]
[1730640336958,2.98,162.92,162.85,3.0713]
[1730640337459,3.0707,162.89,162.86,3.0711]
[1730640338747,3.0705,162.9,162.86,3.0711]
[1730640339945,3.0702,162.92,162.82,2.98]
[1730640340151,2.98,162.93,162.82,2.98]
[1730640340738,6.05,162.93,162.89,3.0705]
[1730640341048,2.98,162.93,162.89,3.0705]
[1730640341850,3.0701,162.92,162.89,3.0705]
[1730640342853,3.0701,162.92,162.82,2.98]
[1730640343062,2.98,162.93,162.82,2.98]
[1730640343445,1.2633,162.92,162.82,2.98]
[1730640343960,3.0706,162.89,162.86,3.071]
[1730640344956,3.0704,162.9,162.87,3.0709]
[1730640345752,1.2633,162.92,162.82,2.98]
[1730640346563,4.3335,162.92,162.88,3.0707]
[1730640346762,1.2633,162.92,162.88,3.0707]
[1730640347153,1.2633,162.92,162.89,3.0706]
[1730640347549,4.3334,162.92,162.89,3.0706]
[1730640347858,19.867,162.98,162.86,2.98]
[1730640347859,2.98,162.97,162.86,2.98]
[1730640348051,2.98,162.97,162.87,5.5936]
[1730640348249,6.0491,162.97,162.93,3.0697]
[1730640348854,2.98,162.97,162.94,3.0695]
[1730640349059,21.0401,163.03,162.9,3.04867432]
[1730640349359,2.98,163.02,162.91,2.98]
[1730640349867,3.069,162.98,162.94,3.0695]
[1730640350447,3.069,162.98,162.91,2.98]
[1730640350648,3.069,162.98,162.95,3.0694]
[1730640351860,2.98,163.01,162.91,2.98]
[1730640352456,24.0201,163.03,162.91,2.98]
[1730640352662,3.0685,163.0,162.91,2.98]
[1730640354357,3.0685,163.0,162.96,3.0691]
[1730640355856,5.5501,163.03,162.91,2.98]
[1730640356072,60.09965307,163.04,162.91,2.98]
[1730640356658,63.16755307,163.04,163.0,3.0684]
[1730640357161,63.16755307,163.04,162.96,2.98]
[1730640357162,60.09965307,163.04,163.01,3.0681]
[1730640357364,5.687,163.08,162.97,3.956]
[1730640357567,5.687,163.08,162.98,3.05103466]
[1730640357871,3.0674,163.06,163.0,3.0685]
[1730640358164,3.0674,163.06,162.97,3.956]
[1730640358363,3.0674,163.06,162.98,3.0289435]
[1730640358570,5.687,163.08,162.98,3.0289435]
[1730640358766,3.0678,163.04,163.0,3.0685]
[1730640359157,3.0677,163.05,163.0,3.0685]
[1730640359365,3.0677,163.05,162.97,3.956]
[1730640359560,5.687,163.08,162.97,3.956]
[1730640360057,24.107,163.08,162.97,3.956]
[1730640360764,3.0676,163.05,163.01,3.0683]
[1730640361260,24.107,163.08,163.01,3.0683]
[1730640361661,24.107,163.08,162.99,3.0686]
[1730640362064,24.107,163.08,162.97,2.6239]
[1730640362264,24.107,163.08,162.99,3.0686]
[1730640362463,3.0676,163.05,162.97,2.6239]
[1730640363574,3.0676,163.05,162.97,3.9317]
[1730640365262,3.0676,163.05,163.01,3.0682]
[1730640366457,3.0676,163.05,163.01,3.0683]
[1730640366658,5.687,163.08,163.01,3.0683]
[1730640367074,3.0677,163.05,163.01,3.0683]
[1730640369268,3.0677,163.05,163.02,3.0681]
[1730640371563,4.4175,163.08,163.01,3.0683]
[1730640371771,4.4175,163.08,163.0,2.98]
[1730640371772,1.3503,163.08,163.0,2.98]
[1730640372274,3.0672,163.07,163.04,3.0676]
[1730640372674,60.06993527,163.11,163.0,2.98]
[1730640373868,3.0666,163.1,163.0,2.98]
[1730640374057,60.06993527,163.11,163.0,2.98]
[1730640374261,18.42,163.1,162.98,3.09575762]
[1730640374475,3.0674,163.07,162.98,3.0687]
[1730640374770,2.98,163.07,162.97,3.9317]
[1730640375172,2.98,163.07,162.98,3.04868522]
[1730640375366,2.98,163.07,162.97,3.9317]
[1730640375367,2.98,163.07,162.97,1.3565]
[1730640375770,3.0682,163.02,162.98,3.0689]
[1730640376963,2.98,163.03,162.95,2.98]
[1730640377370,1.3167,163.02,162.95,2.98]
[1730640377575,3.0688,162.99,162.95,6.0493]
[1730640377774,3.0688,162.99,162.95,3.0693]
[1730640378572,3.0689,162.98,162.94,3.0696]
[1730640378973,1.3167,163.02,162.92,2.98]
[1730640379171,1.3167,163.02,162.91,4.2845]
[1730640379767,3.0691,162.98,162.91,4.2845]
[1730640379972,2.98,162.99,162.91,1.3045]
[1730640381280,3.0691,162.97,162.93,3.0698]
[1730640382371,2.98,162.99,162.87,2.98]
[1730640382768,3.0698,162.94,162.9,3.0704]
[1730640384281,2.98,162.99,162.87,6.0509]
[1730640384282,3.0703,162.91,162.87,6.0509]
[1730640384579,3.0703,162.91,162.87,3.0709]
[1730640385485,3.07,162.92,162.88,3.0706]
[1730640385985,2.98,162.95,162.85,1.2817]
[1730640386184,2.98,162.95,162.86,3.0711]
[1730640386185,3.0705,162.9,162.86,3.0711]
[1730640386491,1.2848,162.94,162.85,1.2817]
[1730640386686,3.0709,162.88,162.85,1.2817]
[1730640388279,1.2848,162.94,162.85,1.2817]
[1730640388481,3.071,162.87,162.84,35.57639868]
[1730640388676,3.071,162.87,162.83,3.0716]
[1730640388876,3.071,162.87,162.82,2.98]
[1730640390382,3.071,162.87,162.84,3.0715]
[1730640390981,3.0708,162.88,162.84,3.0715]
[1730640392478,2.98,162.91,162.82,2.98]
[1730640394382,1.2848,162.94,162.82,2.98]
[1730640394597,2.98,162.93,162.82,2.98]
[1730640395691,3.0705,162.9,162.86,3.071]
[1730640397190,3.0705,162.9,162.87,3.071]
[1730640397493,2.98,162.93,162.82,2.98]
[1730640397998,3.0704,162.91,162.87,3.0709]
[1730640398488,2.98,162.93,162.87,3.0709]
[1730640398692,3.0704,162.9,162.87,3.0709]
[1730640400190,3.0702,162.91,162.82,2.98]
[1730640400391,1.2848,162.94,162.82,2.98]
[1730640400685,3.0694,162.96,162.92,3.0699]
[1730640400881,3.0694,162.96,162.88,6.02517899]
[1730640401077,3.0694,162.96,162.89,1.3186]
[1730640401277,3.0694,162.96,162.92,3.0699]
[1730640401882,3.0695,162.95,162.92,3.0699]
[1730640402082,22.7632,162.98,162.89,1.3186]
[1730640402278,21.4,162.98,162.94,3.0695]
[1730640402806,3.0692,162.97,162.94,3.0695]
[1730640403501,2.98,162.98,162.93,3.0697]
[1730640403502,3.0693,162.96,162.93,3.0697]
[1730640404496,6.0489,162.98,162.95,3.0694]
[1730640404697,6.0489,162.98,162.89,1.3186]
[1730640405197,6.0489,162.98,162.94,3.0696]
[1730640405588,4.3613,162.99,162.95,3.0693]
[1730640405786,1.2926,162.99,162.89,1.3186]
[1730640406079,3.069,162.98,162.89,1.3186]
[1730640406485,19.7003,163.03,162.89,1.3186]
[1730640406699,2.98,163.02,162.97,3.069]
[1730640406894,2.98,163.02,162.92,2.98]
[1730640407386,3.069,162.98,162.95,3.0694]
[1730640407586,2.98,163.02,162.95,3.0694]
[1730640408800,61.37528563,163.04,162.92,2.98]
[1730640409383,61.37528563,163.04,163.0,3.0685]
[1730640409384,3.068,163.03,163.0,3.0685]
[1730640409582,3.068,163.03,162.92,2.98]
[1730640409789,61.37528563,163.04,162.92,2.98]
[1730640410001,63.16378563,163.04,163.0,3.0684]
[1730640410385,63.16378563,163.04,162.96,2.98]
[1730640410586,63.16378563,163.04,162.97,1.357]
[1730640411100,3.0674,163.06,162.97,1.357]
[1730640411298,1.29,163.1,162.97,1.357]
[1730640411299,2.98,163.08,163.03,3.0678]
[1730640411598,2.98,163.08,162.97,7.0495525]
[1730640411599,1.29,163.1,163.0,2.98]
[1730640411801,4.27,163.1,163.0,2.98]
[1730640412297,3.0669,163.09,163.05,3.0675]
[1730640413387,79.8208818,163.15,163.0,2.98]
[1730640413612,3.0666,163.11,163.07,3.0672]
[1730640414199,62.6606818,163.15,163.04,2.98]
[1730640414494,62.6606818,163.15,163.05,3.9573]
[1730640414495,61.3182818,163.15,163.05,3.9573]
[1730640415404,3.0659,163.14,163.1,3.0664]
[1730640415996,3.0662,163.13,163.08,3.067]
[1730640416195,3.0662,163.13,163.05,3.9573]
[1730640416902,3.0662,163.13,163.08,3.0669]
[1730640418799,3.0662,163.13,163.08,6.0269]
[1730640419006,3.0659,163.14,163.1,3.0666]
[1730640420204,63.1242818,163.15,163.1,3.0666]
[1730640421007,3.0664,163.12,163.08,2.96]
[1730640421909,3.0664,163.12,163.08,6.0269]
[1730640422106,63.1242818,163.15,163.08,2.96]
[1730640422510,63.1242818,163.15,163.1,3.0665]
[1730640423209,63.1242818,163.15,163.1,3.0666]
[1730640423403,3.0658,163.15,163.1,3.0666]
[1730640425211,3.0658,163.15,163.11,3.0664]
[1730640425599,2.96,163.17,163.11,3.0664]
[1730640426401,3.0658,163.15,163.11,3.0664]
[1730640426601,2.96,163.17,163.08,2.96]
[1730640426804,3.0663,163.12,163.05,3.9573]
[1730640427022,2.96,163.17,163.06,2.96]
[1730640427202,2.96,163.17,163.08,3.0669]
[1730640427401,3.0664,163.12,163.08,3.0669]
[1730640428712,3.0664,163.12,163.06,2.96]
[1730640428713,3.066,163.14,163.09,3.0666]
[1730640428916,2.96,163.17,163.06,2.96]
[1730640429418,3.0661,163.13,163.09,3.0667]
[1730640431522,2.96,163.17,163.06,3.0672]
[1730640431819,1.3828,163.16,163.06,3.0672]
[1730640432121,1.3828,163.16,163.05,7.3375]
[1730640432313,1.3828,163.16,163.05,4.2699]
[1730640432811,1.3828,163.16,163.01,38.50034105]
[1730640433219,3.0671,163.08,163.04,3.0676]
[1730640433914,3.0671,163.08,163.01,38.50034105]
[1730640434511,3.0671,163.08,163.04,3.0676]
[1730640434715,3.0671,163.08,163.01,38.50034105]
[1730640435514,2.96,163.11,163.04,3.0676]
[1730640435715,3.0675,163.06,163.01,38.50034105]
[1730640436201,1.2979,163.1,162.99,1.3873]
[1730640436408,1.2885,163.09,162.99,1.3873]
[1730640436803,1.2885,163.09,163.0,3.0685]
[1730640437017,1.2885,163.09,162.99,1.3873]
[1730640438421,3.0679,163.04,163.01,3.0683]
[1730640438810,3.0679,163.04,163.0,3.0684]
[1730640441805,3.0679,163.04,163.01,3.0683]
[1730640443415,3.0691,162.98,162.95,3.0694]
[1730640443628,3.0691,162.98,162.93,1.3327]
[1730640444030,3.0685,163.0,162.93,1.3327]
[1730640444329,2.96,163.03,162.93,1.3327]
[1730640444732,3.0685,163.01,162.97,3.069]
[1730640445134,2.96,163.03,162.93,1.3327]
[1730640445430,3.0691,162.97,162.94,3.0695]
[1730640445631,2.96,163.03,162.93,1.3327]
[1730640445632,1.3305,163.02,162.93,1.3327]
[1730640446034,3.0692,162.97,162.93,4.4024]
[1730640446824,1.3305,163.02,162.93,1.3327]
[1730640447029,3.069,162.98,162.94,3.0695]
[1730640447332,3.069,162.98,162.93,1.3327]
[1730640447333,1.3305,163.02,162.93,1.3327]
[1730640447533,2.6174,163.02,162.93,4.4025]
[1730640448129,3.0692,162.97,162.93,4.4025]
[1730640448432,2.6174,163.02,162.93,1.3327]
[1730640448631,3.0686,163.0,162.93,1.3327]
[1730640449022,1.3305,163.02,162.94,3.0695]
[1730640449220,1.3305,163.02,162.93,1.3327]
[1730640449421,3.069,162.98,162.93,1.3327]
[1730640449625,3.069,162.98,162.95,3.0694]
[1730640449838,3.069,162.98,162.93,1.3327]
[1730640450529,1.3305,163.02,162.93,1.3327]
[1730640450729,3.0692,162.97,162.93,4.4024]
[1730640450939,1.3305,163.02,162.93,4.4024]
[1730640451135,3.0686,163.0,162.93,4.4024]
[1730640451331,1.3305,163.02,162.93,4.4024]
[1730640451635,1.3305,163.02,162.93,1.3327]
[1730640452138,1.3305,163.02,162.93,4.4025]
[1730640452333,1.3305,163.02,162.93,1.3327]
[1730640452839,1.3865,163.01,162.93,1.3327]
[1730640454332,1.3865,163.01,162.9,2.96]
[1730640454847,1.3865,163.01,162.88,1.3143]
[1730640456341,3.0697,162.94,162.91,3.0701]
[1730640456748,3.0694,162.95,162.91,3.0702]
[1730640456941,2.98,162.98,162.91,3.0702]
[1730640458238,3.0698,162.93,162.88,1.3143]
[1730640458449,2.98,162.98,162.88,1.3143]
[1730640458743,3.0698,162.94,162.88,1.3143]
[1730640458940,3.0698,162.94,162.91,3.0701]
[1730640459530,2.98,162.98,162.88,4.385]
[1730640459936,2.98,162.98,162.88,1.3143]
[1730640460143,2.98,162.98,162.87,3.0708]
[1730640460144,3.0705,162.9,162.87,3.0708]
[1730640460743,2.98,162.93,162.83,6.9641]
[1730640461135,18.42,163.0,162.83,6.9641]
[1730640461338,3.0698,162.94,162.9,3.0703]
[1730640461644,3.0698,162.94,162.83,6.9641]
[1730640461838,2.98,162.96,162.84,1.1280979]
[1730640462037,2.98,162.96,162.83,6.9641]
[1730640462645,3.0701,162.92,162.89,3.0706]
[1730640464547,3.0703,162.91,162.87,3.0708]
[1730640468849,3.0701,162.92,162.89,3.0704]
[1730640469752,3.0699,162.93,162.9,3.0702]
[1730640471457,3.02,162.96,162.87,3.02]
[1730640471663,3.02,162.98,162.87,3.02]
[1730640472464,66.22217186,163.06,162.87,3.02]
[1730640472654,24.095,163.05,162.88,1.12785119]
[1730640473254,3.0687,163.0,162.93,3.0697]
[1730640473460,3.0687,163.0,162.94,1.3192]
[1730640473755,3.0687,163.0,162.96,3.0691]
[1730640474452,24.095,163.05,162.91,3.02]
[1730640474649,24.095,163.05,162.92,1.3575]
[1730640474650,21.075,163.05,162.92,1.3575]
[1730640474843,3.02,163.04,162.92,1.3575]
[1730640475045,3.02,163.04,162.9,2.6473]
[1730640475046,3.02,163.04,162.82,58.55331142]
[1730640475359,3.0701,162.92,162.83,5.18063322]
[1730640475550,3.0701,162.92,162.84,1.12783322]
[1730640475949,3.0699,162.93,162.89,3.0705]
[1730640476145,3.02,162.96,162.86,3.02]
[1730640476746,3.0698,162.94,162.9,3.0703]
[1730640478954,3.0699,162.93,162.9,3.0703]
[1730640479361,3.02,162.96,162.88,3.0706]
[1730640479567,3.02,162.96,162.86,3.02]
[1730640479568,3.0698,162.94,162.86,3.02]
[1730640479961,3.0695,162.95,162.86,3.02]
[1730640481256,3.0695,162.95,162.92,3.07]
[1730640481965,3.0693,162.97,162.93,3.0697]
[1730640482666,3.0693,162.97,162.86,3.02]
[1730640482667,3.02,163.01,162.9,3.02]
[1730640482868,3.02,163.01,162.91,3.9267]
[1730640483370,3.0687,162.99,162.94,3.0696]
[1730640483569,3.0687,162.99,162.91,3.9267]
[1730640483950,3.0687,162.99,162.95,3.0693]
[1730640485555,3.0687,162.99,162.96,3.0692]
[1730640487061,3.0684,163.01,162.97,3.0689]
[1730640487256,3.0684,163.01,162.91,7.03752375]
[1730640487766,3.0684,163.01,162.97,3.0689]
[1730640488576,3.02,163.04,162.98,3.0687]
[1730640488577,3.0683,163.02,162.98,3.0687]
[1730640491053,3.0683,163.02,162.94,3.02]
[1730640491268,3.0683,163.02,162.99,3.0687]
[1730640497170,3.0683,163.02,162.94,3.02]
[1730640497171,3.02,163.04,162.96,3.0693]
[1730640497375,18.42,163.03,162.92,3.06]
[1730640497672,18.42,163.03,162.91,3.9267]
[1730640497876,3.0692,162.97,162.94,3.0695]
[1730640499071,3.0689,162.98,162.95,3.0693]
[1730640500277,3.06,163.0,162.91,3.9267]
[1730640500463,3.0688,162.99,162.96,3.0691]
[1730640505875,3.06,163.0,162.91,7.06564225]
[1730640506082,3.0695,162.95,162.92,3.07]
[1730640506280,3.0695,162.95,162.91,2.6673]
[1730640506579,3.0696,162.95,162.91,4.3969]
[1730640506779,3.06,163.0,162.91,4.3969]
[1730640507287,3.0695,162.95,162.92,3.07]
[1730640507879,3.06,163.0,162.91,3.0701]
[1730640508279,3.06,163.0,162.86,38.632742]
[1730640509282,3.06,163.0,162.9,3.0703]
[1730640509283,3.07,162.93,162.9,3.0703]
[1730640512980,3.06,162.95,162.86,38.632742]
[1730640513189,3.06,162.95,162.88,3.0707]
[1730640513684,3.0703,162.91,162.87,3.0708]
[1730640513888,3.0703,162.91,162.86,35.572742]
[1730640515380,3.0703,162.91,162.88,3.0707]
[1730640518591,3.07,162.92,162.89,3.0704]
[1730640519097,3.0699,162.93,162.9,3.0702]
[1730640521082,3.0697,162.94,162.91,3.0701]
[1730640524387,3.0709,162.88,162.85,3.0713]
[1730640524792,1.3152,162.94,162.84,4.4213]
[1730640525199,3.0707,162.89,162.84,4.4213]
[1730640525404,1.3152,162.94,162.84,1.3613]
[1730640525790,1.3152,162.94,162.84,4.4327]
[1730640526496,1.3152,162.94,162.84,1.3613]
[1730640526797,1.3152,162.94,162.79,1.2647]
[1730640526999,1.3152,162.94,162.79,5.5629]
[1730640527196,19.7352,162.94,162.79,5.5629]
[1730640527496,3.0714,162.85,162.79,5.5629]
[1730640528300,3.0714,162.85,162.82,3.0719]
[1730640529803,2.98,162.88,162.79,2.5829]
[1730640530004,2.98,162.88,162.8,3.0722]
[1730640530005,3.0717,162.83,162.8,3.0722]
[1730640530802,3.072,162.82,162.79,1.3182]
[1730640534306,18.42,162.94,162.79,1.3182]
[1730640534498,3.0714,162.85,162.79,1.3182]
[1730640534692,2.98,162.88,162.79,1.3182]
[1730640534911,3.0717,162.84,162.8,3.0723]
[1730640536215,3.0717,162.84,162.81,3.0721]
[1730640536911,3.0708,162.88,162.84,3.0714]
[1730640537298,2.98,162.89,162.8,1.374]
[1730640537506,3.0711,162.87,162.83,3.0716]
[1730640537703,2.98,162.89,162.83,3.0716]
[1730640539125,3.071,162.87,162.83,3.0716]
[1730640539420,60.13438437,162.94,162.8,1.374]
[1730640539616,18.42,162.99,162.81,2.98]
[1730640539813,2.98,162.99,162.82,1.12823843]
[1730640540026,3.0692,162.97,162.87,3.0709]
[1730640540216,2.98,162.99,162.88,7.37018417]
[1730640540409,2.98,162.99,162.88,4.3468]
[1730640541412,3.0693,162.96,162.92,3.0699]
[1730640543624,2.98,162.99,162.88,4.3468]
[1730640543824,3.0693,162.96,162.92,3.0699]
[1730640547223,2.98,162.99,162.89,2.7639]
[1730640547417,3.0696,162.95,162.91,3.0701]
[1730640548425,3.0688,162.99,162.95,3.0693]
[1730640548624,3.0688,162.99,162.92,2.98]
[1730640549028,3.0688,162.99,162.95,3.0693]
[1730640549527,2.98,163.01,162.94,3.0696]
[1730640550117,3.0691,162.97,162.94,3.0696]
[1730640550632,6.0484,163.01,162.92,2.98]
[1730640550838,2.98,163.01,162.92,2.98]
[1730640551517,3.0685,163.0,162.94,3.0695]
[1730640551717,3.0685,163.0,162.92,2.98]
[1730640551921,18.42,163.17,162.92,2.98]
[1730640552119,6.1305,163.18,162.93,1.12755101]
[1730640552120,2.3694,163.14,162.93,1.12755101]
[1730640552334,5.6094,163.14,162.93,1.12755101]
[1730640552518,3.0661,163.13,162.94,6.1392]
[1730640552720,3.24,163.14,162.95,1.12755101]
[1730640552934,3.24,163.14,162.96,1.365]
[1730640553123,3.24,163.14,162.97,3.24]
[1730640553324,3.0663,163.12,163.02,3.0681]
[1730640553630,3.0663,163.12,163.03,3.24]
[1730640553828,3.0663,163.12,163.04,1.3442]
[1730640554331,3.0663,163.12,163.07,3.0671]
[1730640555335,3.0666,163.1,163.06,3.0674]
[1730640555724,3.24,163.14,163.04,1.3442]
[1730640555925,3.0669,163.09,163.04,4.4118]
[1730640556434,3.0669,163.09,163.05,3.0675]
[1730640556629,3.0669,163.09,163.04,1.3442]
[1730640557936,3.0669,163.09,163.04,4.4118]
[1730640558235,3.0666,163.11,163.04,1.3442]
[1730640558437,1.3106,163.13,163.03,6.3078]
[1730640559235,3.0671,163.08,163.04,3.0677]
[1730640560636,1.3106,163.13,163.04,3.0677]
[1730640560821,3.0671,163.08,163.04,3.0677]
[1730640561026,2.5673,163.12,163.04,3.0677]
[1730640561731,3.0672,163.07,163.04,3.0677]
[1730640562043,3.24,163.09,163.01,3.0682]
[1730640562236,3.24,163.09,162.99,3.24]
[1730640562835,3.0675,163.06,163.02,3.068]
[1730640565141,3.0665,163.11,163.07,3.067]
[1730640565637,1.3106,163.13,163.07,3.067]
[1730640565833,3.0666,163.11,163.07,3.067]
[1730640568837,3.0666,163.11,163.04,3.24]
[1730640568838,3.0671,163.08,163.04,3.0676]
[1730640569434,3.0671,163.08,163.05,3.0675]
[1730640571848,1.3106,163.13,163.0,3.24]
[1730640572846,3.0667,163.1,163.06,3.0672]
[1730640573245,3.0667,163.1,163.0,3.24]
[1730640573452,3.0667,163.1,163.07,3.0671]
[1730640575848,3.24,163.14,163.0,3.24]
[1730640576044,3.24,163.16,163.0,3.24]
[1730640576348,3.0663,163.12,163.04,3.0676]
[1730640576547,3.0663,163.12,163.05,5.962]
[1730640577050,3.0665,163.11,163.08,3.0669]
[1730640578146,3.0665,163.11,163.05,5.962]
[1730640578147,3.24,163.16,163.05,5.962]
[1730640578351,3.0668,163.1,163.07,3.0671]
[1730640580345,3.24,163.15,163.07,3.067]
[1730640580545,3.24,163.15,163.05,5.962]
[1730640580743,3.0664,163.12,163.09,3.0668]
[1730640582643,3.0664,163.11,163.08,3.0669]
[1730640588855,3.0669,163.09,163.05,2.722]
[1730640589758,3.0669,163.09,163.07,3.0672]
[1730640591553,3.0669,163.09,163.06,3.0672]
[1730640591954,3.067,163.08,163.06,3.0672]
[1730640592146,3.24,163.15,163.02,3.068]
[1730640592147,18.42,163.13,163.02,3.068]
[1730640592353,1.2735,163.12,163.0,3.22]
[1730640592660,3.0675,163.06,163.0,3.22]
[1730640594357,3.0675,163.06,163.03,3.0678]
[1730640594748,3.0675,163.06,162.99,2.6695]
[1730640594749,3.22,163.1,162.99,2.6695]
[1730640594953,3.22,163.1,162.99,5.8895]
[1730640595360,3.0676,163.05,163.02,3.0681]
[1730640597365,4.5009,163.1,163.03,3.0678]
[1730640597366,3.0673,163.07,163.03,3.0678]
[1730640597754,3.0673,163.07,162.99,5.8895]
[1730640597958,3.0673,163.07,163.03,3.0678]
[1730640599569,3.0672,163.08,162.99,5.8895]
[1730640600552,3.22,163.1,162.99,5.8895]
[1730640600754,6.1302,163.19,162.99,5.8895]
[1730640600973,4.5216,163.18,162.99,5.8895]
[1730640601266,4.5216,163.18,163.1,3.0665]
[1730640601465,3.0662,163.13,163.1,3.0665]
[1730640601850,4.5216,163.18,163.11,3.0664]
[1730640602055,3.22,163.17,163.11,3.0664]
[1730640602260,3.22,163.17,163.07,2.7015]
[1730640602464,3.22,163.17,163.1,3.0665]
[1730640602657,3.066,163.14,163.1,3.0665]
[1730640603065,3.066,163.14,163.07,2.7015]
[1730640603066,3.0664,163.12,163.08,3.0669]
[1730640603864,3.0664,163.12,163.09,3.0668]
[1730640604464,21.64,163.17,163.07,2.7015]
[1730640604662,3.0668,163.1,163.06,3.0674]
[1730640604865,3.0668,163.1,163.03,3.22]
[1730640605970,3.0668,163.1,163.06,3.0672]
[1730640606160,21.64,163.17,163.03,3.22]
[1730640606161,3.0671,163.08,163.03,3.22]
[1730640606365,3.22,163.12,163.03,3.22]
[1730640606563,3.22,163.12,163.01,1.3621]
[1730640606873,1.3262,163.11,163.01,1.3621]
[1730640607268,3.0669,163.09,163.05,3.0675]
[1730640607961,1.3262,163.11,163.01,1.3621]
[1730640608167,3.0671,163.08,163.04,3.0676]
[1730640608359,3.0671,163.08,163.01,1.3621]
[1730640608695,3.0671,163.08,163.03,3.0679]
[1730640608972,3.0671,163.08,163.01,1.3621]
[1730640609168,1.3262,163.11,163.04,3.0676]
[1730640609473,1.3262,163.11,162.98,1.3394]
[1730640609772,1.3262,163.11,163.0,3.0684]
[1730640611363,3.0679,163.04,163.0,3.0684]
[1730640611662,3.22,163.06,163.01,3.0682]
[1730640611867,3.0677,163.05,163.01,3.0682]
[1730640612568,3.0674,163.06,163.03,3.0678]
[1730640614579,1.3068,163.14,163.04,3.14239612]
[1730640614771,1.2699,163.15,163.05,3.16]
[1730640615078,1.2699,163.15,163.06,2.675]